bitfinex/quotes_BTCUSD_20250902
["timestamp","ask_amount","ask_price","bid_price","bid_amount"]
[1756781981703,0.04773632,110420.0,110410.0,0.3207163]
[1756781981915,0.50366984,110420.0,110410.0,0.4975163]
[1756781982119,0.04773632,110420.0,110410.0,0.4985163]
[1756781982326,0.68479644,110420.0,110410.0,0.14057329]
[1756781982533,0.68479644,110420.0,110410.0,0.14034967]
[1756781982986,0.68479644,110420.0,110400.0,0.09609998]
[1756781982987,0.18114301,110410.0,110400.0,0.09609998]
[1756781983190,0.63707653,110410.0,110400.0,0.18801597]
[1756781983608,0.63707653,110410.0,110400.0,0.14058229]
[1756781983829,0.63707653,110410.0,110400.0,0.04743368]
[1756781984049,0.18115942,110400.0,110390.0,0.04743368]
[1756781984281,0.18117583,110390.0,110380.0,0.2259363]
[1756781984496,0.63710935,110390.0,110380.0,0.36528597]
[1756781984706,0.1811609,110400.0,110390.0,0.09609998]
[1756781984910,0.1811609,110400.0,110390.0,0.18801597]
[1756781985326,0.1811609,110400.0,110390.0,0.36469597]
[1756781985563,0.1811609,110400.0,110390.0,0.5458718]
[1756781985785,0.53220016,110410.0,110400.0,0.09609998]
[1756781986001,0.98713368,110410.0,110400.0,0.19028046]
[1756781986217,0.97707653,110410.0,110400.0,0.36917539]
[1756781986429,0.45593352,110410.0,110400.0,0.36917539]
[1756781987101,0.63707653,110410.0,110400.0,0.18801597]
[1756781987707,0.63707653,110410.0,110400.0,0.36433597]
[1756781988832,0.18114301,110410.0,110400.0,0.36433597]
[1756781989055,0.63707653,110410.0,110400.0,0.36433597]
[1756781990757,0.63707653,110410.0,110400.0,0.54539544]
[1756781990962,0.63707653,110410.0,110400.0,0.54851544]
[1756781991168,0.04773632,110420.0,110410.0,0.22847674]
[1756781991380,0.04773632,110420.0,110410.0,0.37426903]
[1756781991823,0.04773632,110420.0,110410.0,0.37326903]
[1756781992546,0.04773632,110420.0,110410.0,0.37526903]
[1756781992761,0.04773632,110420.0,110410.0,0.37326903]
[1756781993188,0.04773632,110420.0,110410.0,0.37826903]
[1756781994185,0.34356882,110420.0,110410.0,0.37826903]
[1756781996134,0.34356882,110420.0,110410.0,0.37305903]
[1756781996339,0.52469542,110420.0,110410.0,0.36815602]
[1756781996544,0.34356882,110420.0,110410.0,0.54729903]
[1756781996753,0.34356882,110420.0,110410.0,0.54717903]
[1756781996957,0.34356882,110420.0,110410.0,0.55129903]
[1756781997155,0.52469542,110420.0,110410.0,0.54817903]
[1756781997368,0.34356882,110420.0,110410.0,0.54717903]
[1756781998021,0.34356882,110420.0,110410.0,0.54417903]
[1756781998235,0.04773632,110420.0,110410.0,0.54910903]
[1756781998421,0.34356882,110420.0,110410.0,0.37626903]
[1756781998671,0.34356882,110420.0,110410.0,0.55138903]
[1756781998885,0.34356882,110420.0,110410.0,0.37626903]
[1756781999095,0.34356882,110420.0,110410.0,0.55238903]
[1756781999266,0.34356882,110420.0,110410.0,0.55038903]
[1756781999475,0.34356882,110420.0,110410.0,0.55138903]
[1756781999676,0.04773632,110420.0,110410.0,0.55338903]
[1756781999904,0.34356882,110420.0,110410.0,0.55138903]
[1756782000324,0.34356882,110420.0,110410.0,0.18991602]
[1756782000538,0.34356882,110420.0,110410.0,0.18791602]
[1756782000539,0.52469542,110420.0,110410.0,0.18791602]
[1756782000745,0.52469542,110420.0,110410.0,0.36263602]
[1756782000998,0.52469542,110420.0,110410.0,0.36363602]
[1756782001222,0.52469542,110420.0,110410.0,0.54998903]
[1756782001223,0.04773632,110420.0,110410.0,0.54998903]
[1756782001453,0.34356882,110420.0,110410.0,0.55298903]
[1756782001695,0.04773632,110420.0,110410.0,0.54998903]
[1756782002199,0.34356882,110420.0,110410.0,0.37526903]
[1756782002434,0.04773632,110420.0,110410.0,0.54994903]
[1756782003475,0.04773632,110420.0,110410.0,0.55194903]
[1756782003940,0.04773632,110420.0,110410.0,0.55394903]
[1756782004404,0.01773632,110420.0,110410.0,0.55394903]
[1756782004864,0.01773632,110420.0,110410.0,0.55054903]
[1756782005288,0.01773632,110420.0,110410.0,0.55554903]
[1756782005737,0.01773632,110420.0,110410.0,0.55354903]
[1756782006216,0.01773632,110420.0,110410.0,0.55554903]
[1756782006424,0.01773632,110420.0,110410.0,0.55526903]
[1756782006857,0.01773632,110420.0,110410.0,0.57620785]
[1756782007512,0.01773632,110420.0,110410.0,0.79388785]
[1756782008142,0.01773632,110420.0,110410.0,0.84388785]
[1756782008355,0.01124477,110430.0,110420.0,0.29806545]
[1756782008491,0.01124477,110430.0,110420.0,0.46285144]
[1756782008717,0.01124477,110430.0,110420.0,0.83691867]
[1756782008936,0.01124477,110430.0,110420.0,0.54108617]
[1756782009130,1e-08,110430.0,110420.0,0.83691867]
[1756782009413,1e-08,110430.0,110420.0,0.81073394]
[1756782009631,1e-08,110430.0,110420.0,0.59395665]
[1756782009961,1e-08,110430.0,110420.0,0.89178915]
[1756782010044,1e-08,110430.0,110420.0,0.89478915]
[1756782010253,1e-08,110430.0,110420.0,0.89278915]
[1756782010682,1e-08,110430.0,110420.0,0.89578915]
[1756782010891,1e-08,110430.0,110420.0,1.29578915]
[1756782011336,1e-08,110430.0,110420.0,1.29278915]
[1756782011561,0.00149749,110440.0,110430.0,0.62294273]
[1756782011562,1e-08,110440.0,110430.0,0.62294273]
[1756782011787,1e-08,110440.0,110430.0,0.59565622]
[1756782012017,1e-08,110440.0,110430.0,1.30447754]
[1756782012248,1e-08,110440.0,110430.0,1.13107754]
[1756782012475,1e-08,110440.0,110430.0,1.00852504]
[1756782012968,1e-08,110440.0,110430.0,1.30635754]
[1756782013188,1e-08,110440.0,110430.0,1.30935754]
[1756782014051,1e-08,110440.0,110430.0,1.31583131]
[1756782014270,1e-08,110460.0,110450.0,0.64384876]
[1756782014478,0.18838965,110470.0,110460.0,0.34799986]
[1756782014479,1e-08,110470.0,110460.0,0.34799986]
[1756782014678,1e-08,110470.0,110460.0,0.95866835]
[1756782014910,1e-08,110490.0,110470.0,0.27704465]
[1756782015130,1e-08,110490.0,110480.0,0.54310994]
[1756782015340,1e-08,110490.0,110480.0,0.68481308]
[1756782015555,1e-08,110490.0,110480.0,0.81063558]
[1756782015967,1e-08,110490.0,110480.0,0.98426558]
[1756782016170,1e-08,110490.0,110480.0,0.63839308]
[1756782016372,1e-08,110490.0,110480.0,0.63626308]
[1756782016596,1e-08,110490.0,110480.0,0.63831308]
[1756782016814,1e-08,110490.0,110480.0,0.61837426]
[1756782017021,1e-08,110490.0,110480.0,0.61632426]
[1756782017237,0.29583251,110490.0,110480.0,0.25902602]
[1756782017447,1e-08,110490.0,110480.0,0.25902602]
[1756782017667,0.29583251,110490.0,110480.0,0.61313426]
[1756782017903,0.47684436,110490.0,110480.0,0.25902602]
[1756782018081,0.47684436,110490.0,110480.0,0.26102602]
[1756782018380,0.47684436,110490.0,110480.0,0.19138602]
[1756782018630,0.47684436,110490.0,110480.0,0.14271972]
[1756782018881,1.11267686,110490.0,110480.0,0.00247]
[1756782019084,6.11267686,110490.0,110480.0,0.00247]
[1756782019310,6.11267686,110490.0,110480.0,0.00047]
[1756782019732,6.20459285,110490.0,110480.0,0.00147]
[1756782019936,0.18106101,110460.0,110450.0,0.12088004]
[1756782020161,1.11272601,110460.0,110450.0,0.07354631]
[1756782020376,1.204642,110460.0,110450.0,0.00047021]
[1756782020595,0.5210938,110440.0,110430.0,0.07354631]
[1756782020781,1.2855588,110440.0,110430.0,0.07354631]
[1756782021022,1.1823588,110440.0,110430.0,0.00047026]
[1756782021225,1.3550788,110440.0,110430.0,0.00047026]
[1756782021678,1.44699479,110440.0,110430.0,0.00047026]
[1756782021888,1.27427479,110440.0,110430.0,0.00047026]
[1756782022315,0.7636138,110440.0,110430.0,0.00047026]
[1756782022526,1.1823588,110440.0,110430.0,0.00047026]
[1756782022759,0.8169263,110440.0,110430.0,0.00047026]
[1756782022979,0.9897663,110440.0,110430.0,0.04780399]
[1756782023196,0.9917663,110440.0,110430.0,0.00047026]
[1756782023404,0.8189263,110440.0,110430.0,0.04780399]
[1756782023833,0.8169263,110440.0,110430.0,0.04780399]
[1756782024499,1.1127588,110440.0,110430.0,0.00047026]
[1756782024940,6.22694731,110440.0,110430.0,0.00047026]
[1756782025166,6.39721635,110440.0,110430.0,0.00047026]
[1756782025424,6.39497181,110440.0,110430.0,0.00047026]
[1756782025643,6.21885181,110440.0,110430.0,0.00047026]
[1756782025855,0.9900463,110440.0,110430.0,0.00147026]
[1756782026102,6.4939833,110440.0,110430.0,0.00147026]
[1756782026322,6.51339893,110440.0,110430.0,0.00047026]
[1756782026568,6.51339893,110440.0,110430.0,1e-08]
[1756782026569,5.93005333,110440.0,110430.0,1e-08]
[1756782026800,6.54854863,110440.0,110430.0,1e-08]
[1756782027029,0.54343194,110400.0,110390.0,0.07354631]
[1756782027257,6.22701293,110400.0,110390.0,1e-08]
[1756782027486,0.54346476,110380.0,110370.0,1e-08]
[1756782027709,0.52122508,110360.0,110350.0,0.07354631]
[1756782027939,0.52122508,110360.0,110330.0,0.07354631]
[1756782027940,0.52125793,110340.0,110330.0,0.07354631]
[1756782028182,6.28612293,110340.0,110330.0,0.07354631]
[1756782028615,1.08220642,110340.0,110330.0,0.0740166]
[1756782029264,1.06555464,110340.0,110330.0,0.00047029]
[1756782029477,0.76972214,110340.0,110330.0,0.00047029]
[1756782029693,1.06555464,110340.0,110330.0,0.00047029]
[1756782029901,6.38365966,110340.0,110330.0,0.00147029]
[1756782030094,5.68717995,110340.0,110330.0,0.00047029]
[1756782030362,0.98325245,110340.0,110330.0,0.00047029]
[1756782030650,0.51497995,110340.0,110330.0,0.00047029]
[1756782030889,0.98425245,110340.0,110330.0,0.00047029]
[1756782031119,1.07616844,110340.0,110330.0,0.00047029]
[1756782031341,6.39427346,110340.0,110330.0,0.00047029]
[1756782031815,6.39427346,110340.0,110330.0,1e-08]
[1756782032042,6.22249973,110340.0,110330.0,1e-08]
[1756782032269,5.64235846,110340.0,110330.0,1e-08]
[1756782032499,1.09059844,110340.0,110330.0,0.00100001]
[1756782032722,0.80143865,110340.0,110330.0,1e-08]
[1756782032975,0.65085043,110340.0,110330.0,0.04733374]
[1756782033205,0.65105043,110340.0,110330.0,0.05156374]
[1756782033431,0.65205043,110340.0,110330.0,0.04833374]
[1756782033932,0.99205043,110340.0,110330.0,0.00100001]
[1756782034146,0.99105043,110340.0,110330.0,0.04833374]
[1756782034406,0.99105043,110340.0,110330.0,0.00100001]
[1756782034642,0.99101043,110340.0,110330.0,0.04833374]
[1756782035119,1.08292642,110340.0,110330.0,0.04833374]
[1756782035352,0.99101043,110340.0,110330.0,1e-08]
[1756782035585,0.99101043,110340.0,110330.0,0.04933374]
[1756782036055,0.2958325,110340.0,110330.0,0.23385809]
[1756782036299,0.56994604,110360.0,110350.0,0.22857523]
[1756782036300,0.25086508,110360.0,110350.0,0.22857523]
[1756782036528,0.35490508,110360.0,110350.0,0.04733373]
[1756782036982,0.1812415,110350.0,110340.0,0.28049614]
[1756782036992,0.48657135,110360.0,110350.0,0.32049122]
[1756782037227,0.36441885,110360.0,110350.0,0.13924972]
[1756782037478,0.19028329,110370.0,110350.0,0.32574122]
[1756782037743,0.35578286,110370.0,110360.0,0.22855881]
[1756782037974,0.25993185,110380.0,110370.0,0.04733373]
[1756782038218,0.25993185,110380.0,110360.0,0.05057373]
[1756782038219,0.18120866,110370.0,110360.0,0.05057373]
[1756782038444,0.47704116,110370.0,110360.0,0.04733373]
[1756782038779,0.48660266,110370.0,110360.0,0.04733373]
[1756782039012,0.2958325,110370.0,110360.0,0.3743911]
[1756782039245,0.2958325,110370.0,110360.0,0.37486165]
[1756782039479,0.18119011,110390.0,110380.0,0.04733373]
[1756782039709,0.18119011,110390.0,110380.0,0.05057373]
[1756782039710,0.65138261,110390.0,110380.0,0.05057373]
[1756782040176,0.65138261,110390.0,110380.0,0.04533373]
[1756782040900,0.65438261,110390.0,110380.0,0.04857373]
[1756782041123,0.65126261,110390.0,110380.0,0.04857373]
[1756782041580,0.2958325,110390.0,110380.0,0.37235826]
[1756782042507,0.37397827,110400.0,110390.0,0.04533373]
[1756782043806,0.96564327,110400.0,110390.0,0.04533373]
[1756782044023,0.00955392,110400.0,110390.0,0.37634185]
[1756782044243,0.18122303,110410.0,110400.0,0.04533373]
[1756782044244,0.35486303,110410.0,110400.0,0.04533373]
[1756782044461,0.35486303,110410.0,110400.0,0.13724972]
[1756782044900,0.35486303,110410.0,110400.0,0.32365914]
[1756782044901,0.35478301,110410.0,110400.0,0.32365914]
[1756782045146,0.35478301,110410.0,110400.0,0.14249972]
[1756782045365,0.65061551,110410.0,110400.0,0.14249972]
[1756782045595,0.94644801,110410.0,110400.0,0.04580428]
[1756782045813,1.28644801,110410.0,110400.0,0.00047055]
[1756782046250,0.81697551,110410.0,110400.0,0.00047055]
[1756782046473,0.99037551,110410.0,110400.0,0.00047055]
[1756782047080,0.99037551,110410.0,110400.0,0.00147055]
[1756782047538,0.99037551,110410.0,110400.0,0.00047055]
[1756782047749,0.99013551,110410.0,110400.0,0.00247055]
[1756782048471,1.377884,110410.0,110400.0,0.00247055]
[1756782048702,1.0820515,110410.0,110400.0,0.00247055]
[1756782048889,0.99013551,110410.0,110400.0,0.00247055]
[1756782049104,1.28596801,110410.0,110400.0,0.00247055]
[1756782049325,1.28596801,110410.0,110400.0,0.00347055]
[1756782049817,1.28596801,110410.0,110400.0,0.00247055]
[1756782050050,1.30279514,110410.0,110400.0,0.00247055]
[1756782050277,1.43301971,110410.0,110400.0,0.00247055]
[1756782050497,6.43301971,110410.0,110400.0,0.00047055]
[1756782050965,6.45529223,110410.0,110400.0,0.00147055]
[1756782051204,6.45529223,110410.0,110400.0,0.00047055]
[1756782051426,6.41699805,110410.0,110400.0,1e-08]
[1756782051676,6.44738292,110410.0,110400.0,1e-08]
[1756782051930,6.47165277,110410.0,110400.0,1e-08]
[1756782052142,6.2938265,110410.0,110400.0,1e-08]
[1756782052387,6.44070295,110410.0,110400.0,1e-08]
[1756782052617,6.41598435,110410.0,110400.0,1e-08]
[1756782052842,6.44404333,110410.0,110400.0,1e-08]
[1756782053117,6.46731318,110410.0,110400.0,1e-08]
[1756782053328,6.46931318,110410.0,110400.0,1e-08]
[1756782053568,6.79264517,110410.0,110400.0,1e-08]
[1756782053792,6.8906736,110410.0,110400.0,1e-08]
[1756782054013,6.90585635,110410.0,110400.0,1e-08]
[1756782054222,6.0439411,110410.0,110400.0,1e-08]
[1756782054435,6.78179182,110410.0,110400.0,1e-08]
[1756782054655,6.95467069,110410.0,110400.0,1e-08]
[1756782055522,6.92128611,110410.0,110400.0,1e-08]
[1756782055791,0.18119224,110380.0,110370.0,0.07336281]
[1756782056003,6.35726592,110380.0,110370.0,0.07383382]
[1756782056445,6.37414548,110380.0,110370.0,0.07383382]
[1756782056644,6.37547918,110380.0,110370.0,1e-08]
[1756782056769,6.39977564,110380.0,110370.0,1e-08]
[1756782057196,6.44021749,110380.0,110370.0,1e-08]
[1756782057463,6.54489857,110380.0,110370.0,1e-08]
[1756782057675,6.86091876,110380.0,110370.0,1e-08]
[1756782057891,0.97642329,110340.0,110330.0,0.07354631]
[1756782058120,6.31041928,110340.0,110330.0,0.07401772]
[1756782058346,6.31675086,110340.0,110330.0,0.07401772]
[1756782058839,6.31675086,110340.0,110330.0,0.00047141]
[1756782059033,6.37535309,110340.0,110330.0,1e-08]
[1756782059762,0.18132366,110300.0,110290.0,0.12212004]
[1756782059977,1.14864902,110300.0,110290.0,0.12413004]
[1756782060428,0.5213401,110290.0,110280.0,0.04857373]
[1756782060682,0.5213401,110290.0,110280.0,0.00324]
[1756782060683,1.14858546,110290.0,110280.0,0.00324]
[1756782060925,0.5213401,110290.0,110280.0,0.00525]
[1756782061144,0.97650546,110290.0,110280.0,0.00525]
[1756782061386,1.14901625,110290.0,110280.0,0.05058373]
[1756782061830,1.1583805,110290.0,110280.0,0.05058373]
[1756782062081,1.1583405,110290.0,110280.0,0.05058373]
[1756782062750,0.9863405,110290.0,110280.0,0.05058373]
[1756782062969,0.79563615,110290.0,110280.0,0.32385626]
[1756782063197,1.14881625,110290.0,110280.0,0.19116602]
[1756782063444,1.14881625,110290.0,110280.0,0.05558373]
[1756782063663,0.98668405,110290.0,110280.0,0.05758373]
[1756782063894,0.80885625,110290.0,110280.0,0.10625003]
[1756782064116,0.80885625,110290.0,110280.0,0.05058373]
[1756782064559,0.80885625,110290.0,110280.0,0.05558373]
[1756782064807,0.80881625,110290.0,110280.0,0.09925003]
[1756782065513,0.81809158,110290.0,110280.0,0.10225003]
[1756782065745,0.81809158,110290.0,110280.0,0.00825]
[1756782065976,1.15809158,110290.0,110280.0,0.00324]
[1756782066197,0.52135654,110280.0,110270.0,0.0004]
[1756782066402,1.1178019,110280.0,110270.0,0.0004]
[1756782067053,1.23065671,110280.0,110270.0,0.0004]
[1756782067275,6.23065671,110280.0,110270.0,0.0004]
[1756782068131,6.23065671,110280.0,110270.0,0.0044]
[1756782068270,6.23065671,110280.0,110270.0,0.0004]
[1756782068697,6.23065671,110280.0,110270.0,0.0024]
[1756782068920,6.23065671,110280.0,110270.0,0.0044]
[1756782069337,6.23045671,110280.0,110270.0,0.0044]
[1756782069532,5.60393135,110280.0,110270.0,0.0024]
[1756782069865,5.60393135,110280.0,110270.0,0.0034]
[1756782069866,5.77517135,110280.0,110270.0,0.0034]
[1756782070070,5.77517135,110280.0,110270.0,0.00864]
[1756782070071,0.9462419,110280.0,110270.0,0.00864]
[1756782070250,1.1174819,110280.0,110270.0,0.00662]
[1756782070452,1.1174819,110280.0,110270.0,0.00864]
[1756782070646,0.9462419,110280.0,110270.0,0.00864]
[1756782070857,0.7779219,110280.0,110270.0,0.05397373]
[1756782071482,1.1179219,110280.0,110270.0,0.05397373]
[1756782071933,0.66275654,110280.0,110270.0,0.05397373]
[1756782072137,0.45516536,110280.0,110270.0,0.23534672]
[1756782072392,0.8083219,110280.0,110270.0,0.05397373]
[1756782072607,0.8083219,110280.0,110270.0,0.23534672]
[1756782072794,0.8081619,110280.0,110270.0,0.37592901]
[1756782072933,0.64625158,110290.0,110270.0,0.37592901]
[1756782073135,0.81777158,110290.0,110280.0,0.04855373]
[1756782073379,0.81777158,110290.0,110280.0,0.05057373]
[1756782073524,0.81777158,110290.0,110280.0,0.09924003]
[1756782074366,0.63697625,110290.0,110280.0,0.28059657]
[1756782074594,0.80829625,110290.0,110280.0,0.37251256]
[1756782074808,0.63697625,110290.0,110280.0,0.37251256]
[1756782075058,0.00047079,110290.0,110280.0,0.37251256]
[1756782075482,0.18181089,110290.0,110280.0,0.37251256]
[1756782075697,0.63697625,110290.0,110280.0,0.19115602]
[1756782075910,0.01419273,110330.0,110320.0,0.18129079]
[1756782076142,0.00951957,110340.0,110330.0,0.04533373]
[1756782076339,0.18125793,110340.0,110330.0,0.09924003]
[1756782076558,0.19060019,110340.0,110330.0,0.09924003]
[1756782076785,0.63642329,110340.0,110330.0,0.09924003]
[1756782076994,0.81715554,110340.0,110330.0,0.09924003]
[1756782077194,0.81715554,110340.0,110330.0,0.09928704]
[1756782077415,0.81715554,110340.0,110330.0,0.10528704]
[1756782077833,0.81715554,110340.0,110330.0,0.05138074]
[1756782078257,0.81715554,110340.0,110330.0,0.04860074]
[1756782078467,0.81715554,110340.0,110330.0,0.05062074]
[1756782078692,0.52125793,110340.0,110330.0,0.28856139]
[1756782078897,0.97642329,110340.0,110330.0,0.28856139]
[1756782079100,0.97642329,110340.0,110330.0,0.28556139]
[1756782079519,0.97642329,110340.0,110330.0,0.28856139]
[1756782079961,0.97642329,110340.0,110330.0,0.28356139]
[1756782080167,0.63642329,110340.0,110330.0,0.10728704]
[1756782080403,0.63642329,110340.0,110330.0,0.28856139]
[1756782080619,0.63642329,110340.0,110330.0,0.28356139]
[1756782080831,0.63642329,110340.0,110330.0,0.09928704]
[1756782081045,0.63642329,110340.0,110330.0,0.05062074]
[1756782081285,0.63642329,110340.0,110330.0,0.05462074]
[1756782081483,0.63642329,110340.0,110330.0,0.06062074]
[1756782082146,0.80714329,110340.0,110330.0,0.05460074]
[1756782082362,0.69197793,110340.0,110330.0,0.05640074]
[1756782082594,0.3615162,110350.0,110330.0,0.38147738]
[1756782082805,0.63642329,110340.0,110330.0,0.37825738]
[1756782083037,0.63642329,110340.0,110330.0,0.37225738]
[1756782083259,0.63642329,110340.0,110330.0,0.36925738]
[1756782083260,0.45516536,110340.0,110330.0,0.36925738]
[1756782083468,0.63642329,110340.0,110330.0,0.19620303]
[1756782083683,0.63642329,110340.0,110330.0,0.37747738]
[1756782083890,0.45516536,110340.0,110330.0,0.37747738]
[1756782084101,0.63642329,110340.0,110330.0,0.19620303]
[1756782084325,0.63642329,110340.0,110330.0,0.37064303]
[1756782084551,0.63642329,110340.0,110330.0,0.55191738]
[1756782084776,0.7014762,110350.0,110340.0,0.18125793]
[1756782084991,1.15664156,110350.0,110340.0,0.05057373]
[1756782085394,0.98604156,110350.0,110340.0,0.09924003]
[1756782085654,1.15632156,110350.0,110340.0,0.09722003]
[1756782086012,1.15632156,110350.0,110340.0,0.09922003]
[1756782086222,1.15632156,110350.0,110340.0,0.04733373]
[1756782086554,1.24823755,110350.0,110340.0,0.002]
[1756782086760,1.15632156,110350.0,110340.0,0.005]
[1756782086966,1.15632156,110350.0,110340.0,0.05557373]
[1756782086967,0.98604156,110350.0,110340.0,0.05557373]
[1756782087172,0.7013162,110350.0,110340.0,0.28549796]
[1756782087373,0.5308762,110350.0,110340.0,0.10424003]
[1756782087740,0.98604156,110350.0,110340.0,0.10222003]
[1756782087920,0.5308762,110350.0,110340.0,0.09900003]
[1756782088130,0.98595089,110350.0,110340.0,0.09900003]
[1756782088535,0.98545089,110350.0,110340.0,0.09900003]
[1756782089013,0.98545089,110350.0,110340.0,0.05033373]
[1756782089455,0.77936518,110350.0,110340.0,0.05033373]
[1756782089667,0.96060803,110350.0,110340.0,0.05033373]
[1756782090058,1.05252402,110350.0,110340.0,0.005]
[1756782090351,0.96060803,110350.0,110340.0,0.005]
[1756782090568,1.13056803,110350.0,110340.0,0.05557373]
[1756782090786,1.14019622,110350.0,110340.0,0.05557373]
[1756782091237,0.68503086,110350.0,110340.0,0.10424003]
[1756782091456,0.68503086,110350.0,110340.0,0.09324003]
[1756782091986,1.14019622,110350.0,110340.0,0.08800003]
[1756782092864,1.14019622,110350.0,110340.0,0.09324003]
[1756782093080,1.14019622,110350.0,110340.0,0.09224003]
[1756782094131,1.14019622,110350.0,110340.0,0.03833373]
[1756782094318,1.14019622,110350.0,110340.0,0.04035373]
[1756782094569,1.13987622,110350.0,110340.0,0.09224003]
[1756782095414,1.13987622,110350.0,110340.0,0.09022003]
[1756782095631,0.52125793,110340.0,110330.0,0.08997704]
[1756782095852,0.97642329,110340.0,110330.0,0.18189303]
[1756782096069,0.97642329,110340.0,110330.0,0.18384303]
[1756782096285,0.97642329,110340.0,110330.0,0.36511738]
[1756782096510,0.97642329,110340.0,110330.0,0.18384303]
[1756782096754,0.52125793,110340.0,110330.0,0.18384303]
[1756782096975,0.52125793,110340.0,110330.0,0.18684303]
[1756782097443,0.52125793,110340.0,110330.0,0.36811738]
[1756782098086,0.52125793,110340.0,110330.0,0.37011738]
[1756782100027,0.52125793,110340.0,110330.0,0.53927738]
[1756782100261,0.52125793,110340.0,110330.0,0.35780303]
[1756782100711,0.52125793,110340.0,110330.0,0.18884303]
[1756782101615,0.97642329,110340.0,110330.0,0.18884303]
[1756782102358,1.14534329,110340.0,110330.0,0.00504701]
[1756782102574,1.14534329,110340.0,110330.0,0.04338074]
[1756782103237,1.15170014,110340.0,110330.0,0.04338074]
[1756782103460,1.17123694,110340.0,110330.0,0.00504701]
[1756782103717,1.17123694,110340.0,110330.0,0.04338074]
[1756782104386,1.18820299,110340.0,110330.0,0.04338074]
[1756782105065,1.01928299,110340.0,110330.0,0.04631074]
[1756782105292,0.56411763,110340.0,110330.0,0.09692704]
[1756782105530,0.0428597,110340.0,110330.0,0.37011738]
[1756782105794,0.00962819,110350.0,110340.0,0.22992423]
[1756782106020,0.53086969,110350.0,110340.0,0.49520022]
[1756782106259,0.18134749,110360.0,110350.0,0.03833373]
[1756782106479,0.54729403,110360.0,110350.0,0.04321373]
[1756782106928,0.20729403,110360.0,110350.0,0.04321373]
[1756782107164,0.03536532,110360.0,110350.0,0.13512972]
[1756782107404,0.19064386,110360.0,110350.0,0.36503752]
[1756782107639,0.34941878,110360.0,110350.0,0.36503752]
[1756782108106,0.00941878,110360.0,110350.0,0.36503752]
[1756782108510,0.1812091,110370.0,110360.0,0.21955881]
[1756782108716,0.5212091,110370.0,110360.0,0.4845948]
[1756782109163,0.97637446,110370.0,110360.0,0.03833373]
[1756782109372,1.00230019,110370.0,110360.0,0.03833373]
[1756782110052,1.00230019,110370.0,110360.0,0.04321373]
[1756782110262,0.97637446,110370.0,110360.0,0.04321373]
[1756782110440,0.97637446,110370.0,110360.0,0.04421373]
[1756782110682,0.99592614,110370.0,110360.0,0.03933373]
[1756782110905,0.99592614,110370.0,110360.0,0.04133373]
[1756782111135,1.00229136,110370.0,110360.0,0.003]
[1756782111352,1.00229136,110370.0,110360.0,0.04133373]
[1756782111999,1.00229136,110370.0,110360.0,0.003]
[1756782112000,1.10379333,110370.0,110360.0,0.003]
[1756782112238,6.07394882,110370.0,110360.0,0.003]
[1756782112451,6.13360698,110370.0,110360.0,0.003]
[1756782112670,5.67844162,110370.0,110360.0,0.003]
[1756782112879,6.13360698,110370.0,110360.0,0.003]
[1756782113114,6.13360698,110370.0,110360.0,0.002]
[1756782113337,0.55671198,110370.0,110360.0,0.04321373]
[1756782113605,0.53079508,110370.0,110360.0,0.22443881]
[1756782113816,0.53079464,110370.0,110360.0,0.3650211]
[1756782114487,0.34958598,110370.0,110360.0,0.3660211]
[1756782114693,0.53079464,110370.0,110360.0,0.3660211]
[1756782114935,0.34958598,110370.0,110360.0,0.3710211]
[1756782115152,0.53079464,110370.0,110360.0,0.3710211]
[1756782115592,0.53079464,110370.0,110360.0,0.3700211]
[1756782116034,0.34958598,110370.0,110360.0,0.3730211]
[1756782116459,0.53079464,110370.0,110360.0,0.3730211]
[1756782117668,0.34958598,110370.0,110360.0,0.3730211]
[1756782117891,0.53079464,110370.0,110360.0,0.3730211]
[1756782118976,0.34958598,110370.0,110360.0,0.3730211]
[1756782119190,0.53079464,110370.0,110360.0,0.3730211]
[1756782119627,0.34958598,110370.0,110360.0,0.3730211]
[1756782120096,0.53079464,110370.0,110360.0,0.3730211]
[1756782120834,0.53079464,110370.0,110360.0,0.31020972]
[1756782121046,0.53079464,110370.0,110360.0,0.008]
[1756782121047,0.9939217,110370.0,110360.0,0.008]
[1756782121264,0.72376252,110370.0,110360.0,0.04633373]
[1756782121471,1.01980958,110370.0,110360.0,0.04633373]
[1756782121687,1.33679546,110370.0,110360.0,0.008]
[1756782121902,6.06490783,110370.0,110360.0,0.008]
[1756782122102,6.0407484,110370.0,110360.0,0.008]
[1756782122311,5.85272958,110370.0,110360.0,0.008]
[1756782122551,1.01980958,110370.0,110360.0,0.008]
[1756782122770,1.01972958,110370.0,110360.0,0.0585463]
[1756782123198,1.01972958,110370.0,110360.0,0.0535463]
[1756782123639,0.85272958,110370.0,110360.0,0.09188003]
[1756782123854,1.00011895,110370.0,110360.0,0.09188003]
[1756782124066,0.9937617,110370.0,110360.0,0.09688003]
[1756782124754,1.00011935,110370.0,110360.0,0.09200003]
[1756782125244,0.9937617,110370.0,110360.0,0.09500003]
[1756782125251,1.00011936,110370.0,110360.0,0.008]
[1756782125474,1.11156616,110370.0,110360.0,0.005]
[1756782125932,6.01965017,110370.0,110360.0,0.007]
[1756782126402,0.1812415,110350.0,110340.0,0.08700003]
[1756782126628,0.47728856,110350.0,110340.0,0.18393602]
[1756782126865,0.49590213,110370.0,110360.0,0.03833373]
[1756782127083,0.19715324,110370.0,110360.0,0.27324511]
[1756782127305,0.19715324,110370.0,110360.0,0.09202003]
[1756782127306,0.19079464,110370.0,110360.0,0.09202003]
[1756782127544,0.53079464,110370.0,110360.0,0.3651611]
[1756782127764,0.53079464,110370.0,110360.0,0.3671611]
[1756782127987,0.53079464,110370.0,110360.0,0.18593602]
[1756782128202,0.8268417,110370.0,110360.0,0.18593602]
[1756782128416,0.8268417,110370.0,110360.0,0.18390602]
[1756782128638,0.53079464,110370.0,110360.0,0.18593602]
[1756782128876,0.8268417,110370.0,110360.0,0.18593602]
[1756782130000,0.8268417,110370.0,110360.0,0.18693602]
[1756782130458,0.8268417,110370.0,110360.0,0.18490602]
[1756782131795,0.53079464,110370.0,110360.0,0.18191602]
[1756782132017,0.8268417,110370.0,110360.0,0.18191602]
[1756782132453,0.8268417,110370.0,110360.0,0.18490602]
[1756782133942,0.8268417,110370.0,110360.0,0.04133373]
[1756782135066,0.8268417,110370.0,110360.0,0.003]
[1756782135271,0.84639785,110370.0,110360.0,0.003]
[1756782135479,1.01283785,110370.0,110360.0,0.003]
[1756782136096,1.01275785,110370.0,110360.0,0.003]
[1756782137176,6.93330087,110370.0,110360.0,0.003]
[1756782137387,7.07383006,110370.0,110360.0,0.003]
[1756782137600,7.06665084,110370.0,110360.0,0.003]
[1756782137832,6.64240521,110370.0,110360.0,1e-08]
[1756782138059,0.52125793,110340.0,110330.0,4.701e-05]
[1756782138300,1.00342114,110340.0,110330.0,4.701e-05]
[1756782139390,1.00342114,110340.0,110330.0,0.00304701]
[1756782139818,1.00342114,110340.0,110330.0,4.701e-05]